bitfinex/quotes_BTCUSD_20250714
["timestamp","ask_amount","ask_price","bid_price","bid_amount"]
[1752505823226,1.12527319,120450.0,120440.0,0.01206787]
[1752505825605,1.12527319,120450.0,120440.0,0.00377037]
[1752505825890,1.12527319,120450.0,120420.0,0.1]
[1752505825891,0.24497824,120430.0,120420.0,0.1]
[1752505826114,1.07698566,120430.0,120420.0,0.0852025]
[1752505826336,0.17443294,120390.0,120380.0,0.0002]
[1752505826563,0.03453,120390.0,120380.0,0.00225]
[1752505826787,0.04951039,120400.0,120380.0,0.58679711]
[1752505827024,0.0329,120410.0,120390.0,0.0032]
[1752505827263,0.0329,120430.0,120400.0,0.50205]
[1752505827489,0.42769673,120430.0,120410.0,0.00207623]
[1752505827712,0.03443,120420.0,120400.0,0.21874711]
[1752505827949,0.0317533,120430.0,120410.0,0.01659085]
[1752505828194,0.0640533,120430.0,120410.0,0.10321419]
[1752505828435,0.50520017,120430.0,120410.0,0.01979085]
[1752505828669,0.05714653,120430.0,120410.0,0.10113796]
[1752505828886,0.02484653,120430.0,120420.0,0.09908796]
[1752505829110,0.02484653,120430.0,120420.0,0.10113796]
[1752505829365,0.0314,120420.0,120410.0,0.05362795]
[1752505829583,0.0314,120400.0,120390.0,0.5]
[1752505829803,0.0314,120400.0,120390.0,0.00205]
[1752505829804,0.03560445,120400.0,120390.0,0.00205]
[1752505830021,0.05121498,120400.0,120380.0,0.0034]
[1752505830267,0.05651776,120390.0,120380.0,0.0002]
[1752505830511,0.47591133,120390.0,120380.0,0.0002]
[1752505830747,0.2421969,120390.0,120380.0,0.0002]
[1752505830979,0.17712571,120390.0,120380.0,0.0002]
[1752505831200,0.16758,120400.0,120380.0,0.0002]
[1752505831415,0.16758,120400.0,120380.0,0.0034]
[1752505831638,0.00015324,120400.0,120380.0,0.08134711]
[1752505831866,0.00015324,120400.0,120380.0,0.54550662]
[1752505832090,0.00015324,120400.0,120380.0,0.67970662]
[1752505832309,0.00015324,120400.0,120390.0,0.51026715]
[1752505832540,0.00015324,120400.0,120390.0,0.09588796]
[1752505832758,0.00015324,120400.0,120390.0,0.09796454]
[1752505832978,0.00015324,120400.0,120390.0,0.29196099]
[1752505833223,0.00015324,120400.0,120390.0,0.15568441]
[1752505833464,0.00015324,120400.0,120390.0,0.14874085]
[1752505833688,0.03135324,120400.0,120390.0,0.14874085]
[1752505833935,0.03965847,120400.0,120390.0,0.01454085]
[1752505834181,0.14861454,120400.0,120380.0,0.01454085]
[1752505834397,0.14030945,120400.0,120380.0,0.59588796]
[1752505834613,0.14030945,120400.0,120380.0,0.16920876]
[1752505834614,0.15691998,120400.0,120380.0,0.16920876]
[1752505834829,0.15691998,120400.0,120380.0,0.09588796]
[1752505834830,0.13200436,120400.0,120380.0,0.09588796]
[1752505835046,0.13200436,120400.0,120380.0,0.59588796]
[1752505835272,0.13407881,120400.0,120380.0,0.72996796]
[1752505835493,0.13407881,120400.0,120380.0,0.73096796]
[1752505835724,0.14338383,120400.0,120380.0,0.13504]
[1752505835966,0.11948899,120400.0,120380.0,0.148864]
[1752505836198,0.0332,120390.0,120380.0,0.014824]
[1752505836417,0.04150585,120390.0,120380.0,0.148784]
[1752505836632,0.67256404,120390.0,120380.0,0.148784]
[1752505836845,0.4981311,120390.0,120380.0,0.148784]
[1752505837082,0.48151919,120390.0,120380.0,0.148784]
[1752505837319,0.06714,120390.0,120380.0,0.014824]
[1752505837540,0.01868594,120390.0,120380.0,0.013824]
[1752505837761,0.00207445,120390.0,120380.0,0.013824]
[1752505837983,0.02491776,120390.0,120380.0,0.001]
[1752505838201,0.01038016,120390.0,120380.0,0.13488]
[1752505838421,0.01868594,120390.0,120380.0,0.13488]
[1752505838700,0.01038016,120390.0,120380.0,0.14982208]
[1752505838920,0.00207445,120390.0,120380.0,0.14982208]
[1752505839140,0.00207445,120390.0,120380.0,0.01594208]
[1752505839355,0.00207445,120390.0,120380.0,0.001]
[1752505839586,0.41437919,120400.0,120380.0,0.13796]
[1752505839810,0.23179723,120420.0,120390.0,0.13372]
[1752505839811,0.08525861,120420.0,120390.0,0.13372]
[1752505840032,0.51001617,120420.0,120400.0,0.13376]
[1752505840254,0.03593632,120430.0,120400.0,0.01774085]
[1752505840465,0.02469323,120430.0,120410.0,0.13696]
[1752505840676,0.02676768,120430.0,120410.0,0.00527623]
[1752505840921,0.0186807,120430.0,120410.0,0.00527623]
[1752505841140,0.06728764,120430.0,120410.0,0.00527623]
[1752505841365,0.002,120420.0,120410.0,0.13696]
[1752505841584,0.0453174,120430.0,120410.0,0.21124079]
[1752505841799,0.03701445,120430.0,120410.0,0.07748079]
[1752505842014,0.46181747,120430.0,120420.0,0.13384]
[1752505842230,0.45680302,120430.0,120420.0,0.13384]
[1752505842451,0.48171299,120430.0,120420.0,0.13384]
[1752505842890,0.45680302,120430.0,120420.0,0.13384]
[1752505843116,0.44019698,120430.0,120420.0,0.13384]
[1752505843336,0.02581779,120430.0,120420.0,0.13384]
[1752505843563,0.02581779,120430.0,120420.0,0.15091162]
[1752505843849,0.02481779,120430.0,120420.0,0.15087162]
[1752505844074,0.02581779,120430.0,120420.0,0.01711162]
[1752505844295,0.001,120430.0,120420.0,0.0032]
[1752505844513,0.61364894,120440.0,120420.0,0.0032]
[1752505844755,0.00830309,120430.0,120420.0,0.13692]
[1752505844969,0.24102515,120440.0,120420.0,0.20264806]
[1752505845182,0.002,120430.0,120420.0,0.13688]
[1752505845399,0.001,120430.0,120420.0,0.13688]
[1752505845610,0.001,120430.0,120420.0,0.15142085]
[1752505846277,0.001,120430.0,120420.0,0.01454085]
[1752505846525,0.001,120430.0,120410.0,0.00207623]
[1752505846526,0.00830371,120420.0,120410.0,0.01454085]
[1752505846727,0.001,120430.0,120410.0,0.16437987]
[1752505846940,0.02755356,120440.0,120420.0,0.13686]
[1752505847163,0.02547911,120440.0,120420.0,0.13686]
[1752505847406,0.03478137,120440.0,120430.0,0.13372]
[1752505847672,0.03378137,120440.0,120430.0,0.15575232]
[1752505847912,0.03378137,120440.0,120430.0,0.15893232]
[1752505848360,0.04095775,120440.0,120430.0,0.16095232]
[1752505848578,0.05126029,120440.0,120430.0,0.15777232]
[1752505848797,0.05341382,120440.0,120430.0,0.15777232]
[1752505849015,0.21216906,120440.0,120430.0,0.15777232]
[1752505849234,0.0627165,120440.0,120430.0,0.15777232]
[1752505849462,0.44420244,120440.0,120430.0,0.02203232]
[1752505849680,0.21389327,120420.0,120410.0,0.01090279]
[1752505849899,0.61996861,120420.0,120410.0,0.13356]
[1752505850134,0.01660749,120420.0,120410.0,0.13356]
[1752505850345,0.03321567,120420.0,120410.0,0.13356]
[1752505850563,0.19930103,120420.0,120410.0,0.13356]
[1752505850780,0.03321567,120420.0,120410.0,0.13356]
[1752505851023,0.03421567,120420.0,120410.0,0.197234]
[1752505851255,0.17440411,120410.0,120400.0,0.5]
[1752505851557,0.17440411,120410.0,120390.0,0.130468]
[1752505851558,0.43098848,120410.0,120390.0,0.130468]
[1752505851733,0.43098848,120410.0,120400.0,0.63348]
[1752505851989,0.0249141,120410.0,120400.0,0.13348]
[1752505852207,0.0249141,120410.0,120400.0,0.02094891]
[1752505852453,0.02491404,120410.0,120400.0,0.13344]
[1752505852675,0.01660922,120410.0,120400.0,0.13344]
[1752505852902,0.00830433,120410.0,120400.0,0.13344]
[1752505853619,0.43396558,120430.0,120400.0,0.00418]
[1752505853834,0.00830392,120420.0,120400.0,0.22096352]
[1752505854109,0.01660894,120410.0,120400.0,0.25552431]
[1752505854332,0.00830433,120410.0,120400.0,0.25548431]
[1752505854561,0.43929109,120420.0,120400.0,0.02527635]
[1752505854783,0.01660915,120410.0,120390.0,0.00318]
[1752505855010,0.00830447,120410.0,120400.0,0.13328]
[1752505855232,0.00830433,120410.0,120400.0,0.13428]
[1752505855450,0.45666304,120420.0,120400.0,0.13746]
[1752505855674,0.05591127,120420.0,120400.0,0.1607948]
[1752505855868,0.03737943,120420.0,120410.0,0.00202]
[1752505856151,0.02907558,120420.0,120410.0,0.13526]
[1752505856378,0.03528943,120420.0,120410.0,0.13526]
[1752505856597,0.00207445,120420.0,120410.0,0.13844]
[1752505856819,0.00830364,120420.0,120410.0,0.16037871]
[1752505857049,0.17437559,120430.0,120410.0,0.16037871]
[1752505857050,0.03380888,120440.0,120420.0,0.51454085]
[1752505857279,0.02550662,120440.0,120430.0,0.00318]
[1752505857953,0.02550662,120440.0,120430.0,0.13642]
[1752505858177,0.02550662,120440.0,120430.0,0.15819671]
[1752505858637,0.02550662,120440.0,120430.0,0.13642]
[1752505858879,0.02650662,120440.0,120430.0,0.13642]
[1752505859103,0.02550662,120440.0,120430.0,0.13642]
[1752505859368,0.02850662,120440.0,120430.0,0.00318]
[1752505859584,0.02850662,120440.0,120430.0,0.13638]
[1752505859802,0.02750662,120440.0,120430.0,0.19215271]
[1752505860258,0.02950662,120440.0,120430.0,0.19215271]
[1752505860486,0.02950662,120440.0,120430.0,0.05895271]
[1752505860724,0.00515353,120440.0,120430.0,0.20665356]
[1752505860946,0.00515353,120440.0,120430.0,1.34731167]
[1752505861183,0.00515353,120440.0,120430.0,1.94436944]
[1752505861428,0.00515353,120440.0,120430.0,3.57896583]
[1752505861677,0.06571112,120480.0,120430.0,6.13164483]
[1752505861910,0.06586462,120480.0,120450.0,0.78677919]
[1752505862161,0.0001535,120480.0,120460.0,0.50098167]
[1752505862405,0.01648072,120480.0,120470.0,0.41755919]
[1752505862635,0.01648072,120480.0,120470.0,1.8839433]
[1752505862873,0.0001535,120480.0,120470.0,1.9603573]
[1752505863107,0.0001535,120480.0,120470.0,2.00705817]
[1752505863323,0.0001535,120480.0,120470.0,5.90473017]
[1752505863548,0.0001535,120480.0,120470.0,5.87169017]
[1752505863804,0.0001535,120480.0,120470.0,6.01931102]
[1752505864019,0.0001535,120480.0,120470.0,5.88623102]
[1752505864288,0.0001535,120480.0,120470.0,5.90403183]
[1752505864766,0.06571112,120520.0,120500.0,0.01454085]
[1752505864987,0.06586459,120520.0,120510.0,0.64965536]
[1752505865208,0.06586459,120520.0,120510.0,0.15072085]
[1752505865642,0.06586459,120520.0,120510.0,0.15068085]
[1752505866088,0.06586459,120520.0,120510.0,0.15295536]
[1752505866327,0.06586459,120520.0,120510.0,0.12677059]
[1752505866551,0.06586459,120520.0,120510.0,0.73108247]
[1752505866805,0.08245837,120520.0,120510.0,0.14766085]
[1752505867037,0.07416148,120520.0,120510.0,0.01454085]
[1752505867260,0.07416148,120520.0,120500.0,0.02197871]
[1752505867261,0.71306036,120520.0,120500.0,0.02197871]
[1752505867451,0.47502631,120510.0,120490.0,0.50207486]
[1752505867704,0.65551,120510.0,120490.0,0.5]
[1752505867925,0.0082982,120500.0,120490.0,0.84]
[1752505868151,0.67211422,120510.0,120490.0,0.55463734]
[1752505868367,0.01659647,120500.0,120490.0,0.42131734]
[1752505868593,0.48955691,120510.0,120490.0,0.34]
[1752505868812,0.50615227,120510.0,120490.0,0.34]
[1752505869030,0.51445026,120510.0,120500.0,0.13328]
[1752505869254,0.48125919,120510.0,120500.0,0.180608]
[1752505869475,0.00829744,120510.0,120500.0,0.047328]
[1752505869697,0.63269061,120510.0,120500.0,0.180568]
[1752505869933,0.4895567,120510.0,120500.0,0.047328]
[1752505870164,0.10486148,120520.0,120500.0,0.18264268]
[1752505870387,0.09656459,120520.0,120500.0,0.180568]
[1752505870663,0.001,120510.0,120500.0,0.14639596]
[1752505870890,0.001,120510.0,120500.0,1.0715939]
[1752505870891,0.002,120510.0,120500.0,1.0715939]
[1752505871106,0.001,120510.0,120500.0,2.05298488]
[1752505871335,0.001,120510.0,120500.0,1.93126315]
[1752505871566,0.001,120510.0,120500.0,4.17147534]
[1752505871826,0.00015347,120520.0,120510.0,0.65869554]
[1752505872047,0.00015347,120520.0,120510.0,5.91511918]
[1752505872273,0.09851112,120570.0,120540.0,0.35454085]
[1752505872274,0.06611112,120570.0,120540.0,0.35454085]
[1752505872510,0.06626456,120570.0,120560.0,0.34]
[1752505872747,0.06626456,120570.0,120560.0,0.35772085]
[1752505872970,0.00055344,120570.0,120560.0,1.63958957]
[1752505873205,0.00055344,120570.0,120560.0,1.05805769]
[1752505873431,0.00055344,120570.0,120560.0,5.77194072]
[1752505873646,0.00055344,120570.0,120560.0,5.82194072]
[1752505873866,0.00055344,120570.0,120560.0,5.87194072]
[1752505874115,0.0004,120580.0,120570.0,0.19075971]
[1752505874329,0.0004,120580.0,120570.0,5.873492]
[1752505874571,0.0004,120580.0,120570.0,5.876672]
[1752505875008,0.0004,120580.0,120570.0,6.00145869]
[1752505875264,0.0004,120580.0,120570.0,6.04162612]
[1752505875501,0.0004,120600.0,120570.0,6.03333239]
[1752505875715,0.25674517,120650.0,120630.0,0.01454085]
[1752505875936,0.0662228,120630.0,120610.0,0.35454085]
[1752505876164,0.0662228,120630.0,120620.0,4.412423]
[1752505876387,0.0662228,120630.0,120620.0,2.137605]
[1752505876616,0.0662228,120630.0,120620.0,1.871485]
[1752505876833,0.0662228,120630.0,120620.0,2.09486645]
[1752505877099,0.0662228,120630.0,120620.0,1.96182645]
[1752505877327,0.0692228,120630.0,120620.0,2.09486645]
[1752505877560,0.07451213,120630.0,120620.0,0.50266445]
[1752505877782,0.89241693,120630.0,120620.0,0.21435734]
[1752505878010,0.32966702,120630.0,120610.0,0.5]
[1752505878233,0.0308,120620.0,120610.0,0.09588796]
[1752505878457,0.05046996,120620.0,120610.0,0.13316]
[1752505878715,0.1968242,120610.0,120570.0,0.24410514]
[1752505878964,0.1968242,120610.0,120570.0,0.12661225]
[1752505878965,0.71832375,120600.0,120570.0,0.12661225]
[1752505879201,0.031,120590.0,120580.0,0.00207331]
[1752505879444,0.031,120590.0,120570.0,0.58134711]
[1752505879445,0.08443711,120590.0,120550.0,0.05]
[1752505879658,0.0619,120550.0,120520.0,0.00296]
[1752505879879,0.0619,120570.0,120530.0,1.923565]
[1752505880105,0.07806931,120570.0,120540.0,0.13467688]
[1752505880323,0.09671112,120550.0,120510.0,0.2018]
[1752505880546,0.03349,120540.0,120530.0,0.00015344]
[1752505880766,0.19941002,120540.0,120530.0,0.50015344]
[1752505880990,0.23259318,120540.0,120530.0,0.50015344]
[1752505881210,0.25549767,120540.0,120530.0,0.05016878]
[1752505881397,0.25549767,120540.0,120530.0,0.13379344]
[1752505881648,0.24720125,120540.0,120530.0,0.00015344]
[1752505881866,0.23890553,120540.0,120530.0,0.13379344]
[1752505882108,0.19632002,120540.0,120530.0,0.13375344]
[1752505882331,0.19632002,120540.0,120530.0,0.04752878]
[1752505882548,0.0304,120540.0,120530.0,0.18112878]
[1752505882767,0.29239283,120550.0,120530.0,0.18112878]
[1752505883000,0.16792002,120540.0,120530.0,0.18112878]
[1752505883221,0.1782154,120540.0,120530.0,0.18112878]
[1752505883665,0.002,120540.0,120530.0,0.18112878]
[1752505883885,0.1762154,120540.0,120530.0,0.18112878]
[1752505884106,0.16792002,120540.0,120530.0,0.18108878]
[1752505884339,0.21850112,120540.0,120530.0,0.00015344]
[1752505884575,0.90368843,120540.0,120530.0,0.00015344]
[1752505884807,0.24744183,120520.0,120510.0,0.13372]
[1752505885037,0.28897724,120510.0,120480.0,0.08134711]
[1752505885269,0.18257311,120500.0,120490.0,0.13384]
[1752505885507,0.3160698,120510.0,120490.0,0.13384]
[1752505885764,0.3160698,120510.0,120490.0,0.15535871]
[1752505885978,0.18257171,120500.0,120490.0,0.36151871]
[1752505886208,0.13350112,120510.0,120490.0,0.89941118]
[1752505886436,0.13350112,120510.0,120490.0,0.49547218]
[1752505886668,0.14179856,120510.0,120490.0,0.49547218]
[1752505886902,0.10120112,120530.0,120500.0,0.65638557]
[1752505887134,0.00829682,120520.0,120500.0,0.50562445]
[1752505887364,0.29202684,120530.0,120510.0,0.1338]
[1752505887591,0.28373022,120530.0,120510.0,0.1338]
[1752505887815,0.10949732,120530.0,120510.0,0.1338]
[1752505888037,0.09811112,120530.0,120520.0,0.13372]
[1752505888267,0.06571112,120530.0,120520.0,0.147092]
[1752505888492,0.0902856,120530.0,120520.0,0.013372]
[1752505888710,0.02457448,120530.0,120520.0,2.42748496]
[1752505888926,0.02457448,120530.0,120520.0,2.56116496]
[1752505889143,0.1036934,120550.0,120530.0,0.34]
[1752505889144,0.12028312,120550.0,120530.0,0.34]
[1752505889597,0.10110112,120550.0,120540.0,0.13372]
[1752505889896,0.27789442,120550.0,120540.0,0.181092]
[1752505890112,0.28359697,120550.0,120540.0,0.181052]
[1752505890355,0.09801112,120550.0,120540.0,0.181052]
[1752505890569,0.1006034,120550.0,120540.0,0.181052]
[1752505890801,0.10889816,120550.0,120540.0,0.181052]
[1752505891018,0.10989823,120550.0,120540.0,0.181052]
[1752505891247,0.1016034,120550.0,120540.0,0.181052]
[1752505891472,0.0693034,120550.0,120540.0,0.181052]
[1752505891699,0.001,120550.0,120540.0,1.72118562]
[1752505891941,0.001,120550.0,120540.0,1.73572647]
[1752505892169,0.002,120550.0,120540.0,3.00896147]
[1752505892360,0.002,120550.0,120540.0,3.13256547]
[1752505892625,0.08229644,120580.0,120550.0,0.01454085]
[1752505892848,0.0658645,120580.0,120560.0,0.84]
[1752505893073,0.11614023,120580.0,120560.0,0.4736]
[1752505893301,0.10784726,120580.0,120560.0,0.4736]
[1752505893548,0.11614016,120580.0,120560.0,0.34]
[1752505893783,0.02797056,120570.0,120550.0,0.13447296]
[1752505894017,0.09601112,120560.0,120550.0,0.39312585]
[1752505894247,0.30337513,120560.0,120550.0,0.39312585]
[1752505894434,0.04818959,120550.0,120540.0,4e-05]
[1752505894711,0.05387187,120550.0,120540.0,4e-05]
[1752505894941,0.0316,120550.0,120540.0,0.4736]
[1752505895167,0.0901341,120560.0,120540.0,0.63626445]
[1752505895393,0.0901341,120560.0,120540.0,1.45619245]
[1752505895614,0.0901341,120560.0,120540.0,0.50566445]
[1752505895838,0.06571112,120560.0,120550.0,0.3439968]
[1752505896084,0.06571112,120560.0,120550.0,1.71361434]
[1752505896316,0.06880112,120560.0,120550.0,0.42131734]
[1752505896543,0.05618503,120550.0,120540.0,0.08135734]
[1752505896768,0.82921308,120550.0,120540.0,4e-05]
[1752505897010,0.81832597,120550.0,120540.0,4e-05]
[1752505897464,0.89967308,120550.0,120540.0,4e-05]
[1752505897962,0.81832597,120550.0,120540.0,4e-05]
[1752505898180,0.07308483,120550.0,120540.0,4e-05]
[1752505898409,0.08137972,120550.0,120540.0,4e-05]
[1752505898653,0.24987881,120550.0,120540.0,4e-05]
[1752505898884,0.24728653,120550.0,120540.0,4e-05]
[1752505899102,0.24928653,120550.0,120540.0,4e-05]
[1752505899573,0.09167455,120550.0,120540.0,4e-05]
[1752505899785,0.27676336,120550.0,120540.0,4e-05]
[1752505900009,0.08637959,120550.0,120540.0,4e-05]
[1752505900225,0.005,120550.0,120540.0,4e-05]
[1752505900415,0.003,120550.0,120540.0,4e-05]
[1752505900677,0.006,120550.0,120540.0,0.13356]
[1752505900908,0.006,120550.0,120540.0,0.95234767]
[1752505901097,0.006,120550.0,120540.0,0.58582767]
[1752505901348,0.003,120550.0,120540.0,0.45234767]
[1752505901572,0.003,120550.0,120540.0,0.43484682]
[1752505901801,0.01918201,120550.0,120540.0,0.47348]
[1752505902033,0.09920112,120560.0,120540.0,0.47348]
[1752505902265,0.002,120550.0,120540.0,0.48327596]
[1752505902507,0.001,120550.0,120540.0,0.48623596]
[1752505902965,1.139e-05,120550.0,120540.0,0.48327596]
[1752505903192,1.139e-05,120550.0,120540.0,0.61671596]
[1752505903428,0.08229919,120560.0,120540.0,0.61667596]
[1752505903661,0.11239919,120560.0,120550.0,0.1334]
[1752505903883,0.11339919,120560.0,120550.0,0.1950676]
[1752505904379,0.001,120560.0,120550.0,0.29391556]
[1752505904629,0.11744146,120580.0,120550.0,0.29391556]
[1752505904863,0.09985614,120580.0,120560.0,0.34103619]
[1752505905142,0.0658645,120580.0,120570.0,0.47344]
[1752505905365,0.0658645,120580.0,120570.0,0.4764]
[1752505905599,0.0658645,120580.0,120570.0,0.43884796]
[1752505906108,0.0658645,120580.0,120570.0,0.57224796]
[1752505906348,0.0658645,120580.0,120570.0,0.63611773]
[1752505906858,0.00115338,120580.0,120570.0,2.37183116]
[1752505907104,0.00115338,120580.0,120570.0,3.50118961]
[1752505907325,0.00115338,120580.0,120570.0,3.53228961]
[1752505907839,0.00115338,120580.0,120570.0,1.22186812]
[1752505908059,0.00115338,120580.0,120570.0,1.47835533]
[1752505908305,0.00115338,120580.0,120570.0,1.43754273]
[1752505908538,0.00015338,120580.0,120570.0,2.10768857]
[1752505908762,0.00015338,120580.0,120570.0,2.14728243]
[1752505908994,0.00015338,120580.0,120570.0,1.42192377]
[1752505909221,0.00015338,120580.0,120570.0,0.55271773]
[1752505909445,0.00015338,120580.0,120570.0,0.95436773]
[1752505910162,0.00015338,120580.0,120570.0,0.95236773]
[1752505910378,0.00015338,120580.0,120570.0,0.81896773]
[1752505910600,0.00015338,120580.0,120570.0,0.81996773]
[1752505910823,0.00015338,120580.0,120570.0,0.95328773]
[1752505911516,0.00015338,120580.0,120570.0,0.47428]
[1752505911732,0.00015338,120580.0,120570.0,0.66964611]
[1752505911957,0.00015338,120580.0,120570.0,0.68418696]
[1752505912652,0.00015338,120580.0,120570.0,0.43688796]
[1752505913170,0.00015338,120580.0,120570.0,0.341]
[1752505913378,0.00015338,120580.0,120570.0,0.51524097]
[1752505913598,0.00015338,120580.0,120570.0,0.51528097]
[1752505913843,0.00015338,120580.0,120570.0,0.38208097]
[1752505914029,0.00015338,120580.0,120570.0,0.51528097]
[1752505914472,0.00327338,120580.0,120570.0,0.34104]
[1752505914734,0.00327338,120580.0,120570.0,0.4742]
[1752505915316,0.00015338,120580.0,120570.0,0.47424]
[1752505915670,0.00015338,120580.0,120570.0,0.34104]
[1752505916474,0.00015338,120580.0,120570.0,0.47416]
[1752505916676,0.0629,120590.0,120580.0,0.34]
[1752505916897,0.06445634,120590.0,120580.0,0.34]
[1752505917630,0.06445634,120590.0,120580.0,0.13304]
[1752505918080,0.06545634,120590.0,120570.0,0.048456]
[1752505918316,0.06571112,120580.0,120570.0,0.047456]
[1752505918534,0.06571112,120580.0,120570.0,0.520456]
[1752505918756,0.06571112,120580.0,120570.0,0.48630396]
[1752505918981,0.00255634,120590.0,120570.0,0.61930396]
[1752505919207,0.001,120590.0,120580.0,0.10092127]
[1752505919443,0.001,120590.0,120580.0,2.44428806]
[1752505919687,0.001,120590.0,120580.0,2.43101175]
[1752505919927,0.001,120590.0,120580.0,1.318137]
[1752505920148,5.07620087,120600.0,120580.0,1.408722]
[1752505920395,5.07620087,120600.0,120590.0,0.00296]
[1752505920632,5.01462495,120600.0,120590.0,0.09884796]
[1752505920871,0.04878422,120590.0,120570.0,0.051416]
[1752505921102,0.06571112,120580.0,120570.0,0.00104]
[1752505921330,0.06571112,120580.0,120570.0,1.464788]
[1752505921583,5.01562495,120600.0,120580.0,0.00296]
[1752505921810,5.01562495,120600.0,120590.0,0.63312]
[1752505922034,5.01562495,120600.0,120590.0,0.5731968]
[1752505922259,5.06450793,120600.0,120590.0,0.0731968]
[1752505922491,5.08931627,120600.0,120590.0,0.0731968]
[1752505922722,0.0317,120580.0,120570.0,0.00104]
[1752505922970,0.03999269,120580.0,120570.0,0.00104]
[1752505923196,0.03325634,120580.0,120570.0,0.13424]
[1752505923422,0.08114186,120580.0,120570.0,0.13424]
[1752505923648,0.07284897,120580.0,120570.0,0.146664]
[1752505923865,0.08114173,120580.0,120570.0,0.146664]
[1752505924349,0.08114173,120580.0,120570.0,0.013464]
[1752505924573,0.06455634,120580.0,120570.0,0.013464]
[1752505924800,0.0317,120580.0,120570.0,0.146584]
[1752505925036,0.10520313,120590.0,120570.0,0.149544]
[1752505925252,0.10520313,120590.0,120570.0,0.15261748]
[1752505925493,0.11505155,120590.0,120570.0,0.15261748]
[1752505925717,0.13735947,120590.0,120570.0,0.014464]
[1752505925949,0.00829263,120580.0,120570.0,0.014464]
[1752505926174,0.01658539,120580.0,120570.0,0.147504]
[1752505926395,0.03949263,120580.0,120570.0,0.147504]
[1752505926620,0.04778532,120580.0,120570.0,0.147504]
[1752505926831,0.05607808,120580.0,120570.0,0.147504]
[1752505927057,0.05607822,120580.0,120570.0,0.014464]
[1752505927282,0.81979568,120580.0,120570.0,4e-05]
[1752505927535,0.81150278,120580.0,120570.0,4e-05]
[1752505927747,0.81150278,120580.0,120570.0,0.00104]
[1752505928025,0.240028,120580.0,120570.0,4e-05]
[1752505928246,0.2483207,120580.0,120570.0,4e-05]
[1752505928467,0.23173483,120580.0,120570.0,0.00104]
[1752505928695,0.24002745,120580.0,120570.0,0.00104]
[1752505929144,0.24002745,120580.0,120570.0,4e-05]
[1752505929360,0.08245565,120580.0,120570.0,4e-05]
[1752505929587,0.24987697,120580.0,120570.0,4e-05]
[1752505929802,0.24832063,120580.0,120570.0,4e-05]
[1752505930013,0.24932063,120580.0,120570.0,4e-05]
[1752505930453,0.24832063,120580.0,120570.0,4e-05]
[1752505930670,0.24302787,120580.0,120570.0,4e-05]
[1752505930893,0.24602787,120580.0,120570.0,4e-05]
[1752505931823,0.2377349,120580.0,120570.0,4e-05]
[1752505932263,0.08016289,120580.0,120570.0,4e-05]
[1752505932473,0.09001192,120580.0,120570.0,4e-05]
[1752505932921,0.25587732,120580.0,120570.0,4e-05]
[1752505933135,0.0687495,120580.0,120570.0,4e-05]
[1752505933346,0.07030577,120580.0,120570.0,4e-05]
[1752505933759,0.06201308,120580.0,120570.0,4e-05]
[1752505933977,0.006,120580.0,120570.0,0.003]
[1752505934197,0.006,120580.0,120570.0,0.00507348]
[1752505934463,0.006,120580.0,120570.0,1.01631448]
[1752505934700,0.09597863,120580.0,120570.0,0.08135734]
[1752505934953,0.25357057,120580.0,120570.0,4e-05]
[1752505935182,0.26915685,120580.0,120570.0,0.13288]
[1752505935432,0.83033894,120580.0,120570.0,4e-05]
[1752505935872,0.83133894,120580.0,120570.0,4e-05]
[1752505936091,0.25986416,120580.0,120570.0,4e-05]
[1752505936779,0.26186416,120580.0,120570.0,4e-05]
[1752505937244,0.25986416,120580.0,120570.0,4e-05]
[1752505937686,0.82404604,120580.0,120570.0,4e-05]
[1752505939044,0.815753,120580.0,120570.0,4e-05]
[1752505939896,0.08670546,120580.0,120570.0,4e-05]
[1752505940129,0.09353477,120580.0,120570.0,4e-05]
[1752505940606,0.2511074,120580.0,120570.0,4e-05]
[1752505940905,0.24955106,120580.0,120570.0,4e-05]
[1752505941128,0.08368608,120580.0,120570.0,4e-05]
[1752505941352,0.08524207,120580.0,120570.0,4e-05]
[1752505941579,0.09353518,120580.0,120570.0,4e-05]
[1752505941813,0.26736327,120580.0,120570.0,4e-05]
[1752505942043,0.09985901,120580.0,120570.0,4e-05]
[1752505942274,0.26728033,120580.0,120570.0,4e-05]
[1752505942500,0.26874399,120580.0,120570.0,4e-05]
[1752505942722,0.26045123,120580.0,120570.0,4e-05]
[1752505943203,0.71527814,120580.0,120570.0,4e-05]
[1752505943468,0.08837272,120580.0,120570.0,4e-05]
[1752505943709,0.07861609,120580.0,120570.0,4e-05]
[1752505944172,0.00563634,120580.0,120570.0,4e-05]
[1752505944403,0.00563634,120580.0,120570.0,0.00532]
[1752505944404,0.002,120580.0,120570.0,0.00532]
[1752505944620,0.002,120580.0,120570.0,0.13816]
[1752505944850,0.002,120580.0,120570.0,0.053136]
[1752505945293,0.002,120580.0,120570.0,0.185976]
[1752505945738,0.00408,120580.0,120570.0,0.185976]
[1752505945975,0.00408,120580.0,120570.0,0.053136]
[1752505946170,0.00408,120580.0,120570.0,0.00532]
[1752505946388,0.56792218,120590.0,120570.0,0.13816]
[1752505946608,0.11309527,120590.0,120570.0,0.00532]
[1752505946816,0.11465161,120590.0,120570.0,0.13816]
[1752505947030,0.06726746,120590.0,120580.0,0.0032]
[1752505947305,0.06726746,120590.0,120580.0,0.50528]
[1752505947522,0.06726746,120590.0,120580.0,0.56930335]
[1752505947739,0.06826746,120590.0,120580.0,0.56930335]
[1752505947955,0.06826746,120590.0,120580.0,0.70214335]
[1752505948203,0.06826746,120590.0,120580.0,0.20214335]
[1752505948439,0.06826746,120590.0,120580.0,0.13812]
[1752505948900,0.06726746,120590.0,120580.0,0.13812]
[1752505949125,0.06826746,120590.0,120580.0,0.13812]
[1752505949350,0.06926746,120590.0,120580.0,0.13812]
[1752505949551,0.07124746,120590.0,120580.0,0.13812]
[1752505949768,0.07024746,120590.0,120580.0,0.15214335]
[1752505949987,0.07124746,120590.0,120580.0,0.15214335]
[1752505950653,0.06926746,120590.0,120580.0,0.01930335]
[1752505950873,0.06926746,120590.0,120580.0,0.13812]
[1752505951353,0.06926746,120590.0,120580.0,0.47812]
[1752505951774,0.06926746,120590.0,120580.0,0.49361781]
[1752505952230,0.06926746,120590.0,120580.0,0.36077781]
[1752505952488,0.06926746,120590.0,120580.0,0.49357781]
[1752505952947,0.06926746,120590.0,120580.0,0.36077781]
[1752505953188,0.58375108,120590.0,120580.0,0.01549781]